[Event "5th Sharjah Masters 2022"]
[Site "Sharjah"]
[Date "2022.05.26"]
[Round "6.25"]
[White "Nihal Sarin"]
[Black "Baenziger, Fabian"]
[Result "1-0"]
[ECO "A07"]
[WhiteElo "2646"]
[BlackElo "2430"]
[Annotator "TA"]
[PlyCount "77"]
[EventDate "2022.05.21"]
[EventType "swiss"]
[EventCountry "UAE"]
[SourceTitle "playchess.com"]
[Source "ChessBase"]
[SourceQuality "1"]
[TimeControl "5400+30"]

{[%evp 9,77,6,4,20,10,9,12,20,44,7,10,20,18,9,14,9,10,9,38,29,25,8,0,6,21,4,25,6,5,12,25,23,50,43,33,54,91,92,91,59,66,41,124,129,116,122,116,118,118,117,145,141,201,160,290,283,277,24,23,0,25,23,195,209,229,191,458,50,486,476]} 1. Nf3 {[%emt 0:00:42]} d5 {[%emt 0:00:24]} 2. g3 {[%emt 0:02:55]} Bg4 {[%emt 0:00:40]} 3. Bg2 {[%emt 0:00:15]} Nd7 {[%emt 0:01:01]} 4. d3 {[%emt 0:06:49]} e6 {[%emt 0:03:45]} 5. h3 {[%emt 0:01:05]} Bh5 {[%emt 0:01:01]} 6. O-O {[%emt 0:00:59] A07: Réti Opening: New York and Capablanca Systems.} Bd6 {[%emt 0:00:59]} 7. c4 $5 {[%emt 0:09:12][%mdl 4] Exploring less charted territory.} c6 {[%emt 0:03:58]} 8. cxd5 {[%emt 0:07:37] The position is equal.} exd5 {[%emt 0:00:53]} 9. Qc2 $5 {[%emt 0:01:59][%mdl 4] An interesting side line.} Ne7 {[%emt 0:00:44]} 10. e4 {[%emt 0:01:45]} O-O {[%emt 0:00:08]} 11. Nc3 {[%emt 0:00:02]} Rc8 {[%emt 0:08:53] [#]} 12. g4 $146 {[%emt 0:20:51]} ({Predecessor:} 12. Re1 Nc5 13. Nh4 Ne6 14. f4 d4 15. Ne2 f6 16. Nf5 Bf7 17. Nxd6 Qxd6 18. f5 {1-0 (41) Nakamura,H (2736)-Tang,A (2512) Chess.com INT 2021}) 12... Bg6 {[%emt 0:00:13]} 13. Nh4 {[%emt 0:00:01]} dxe4 {[%emt 0:14:27]} 14. dxe4 {[%emt 0:03:16]} Qc7 {[%emt 0:00:32]} 15. f4 {[%emt 0:01:25] Black must now prevent f5.} f6 {[%emt 0:01:03]} 16. Nxg6 {[%emt 0:03:09]} Nxg6 {[%emt 0:00:55]} 17. Ne2 {[%emt 0:00:06][%cal Bc3e2,Be2g3,Bg3h5][%mdl 32]} Bc5+ {[%emt 0:13:23]} 18. Kh1 {[%emt 0:05:39]} Nh4 {[%emt 0:02:47]} 19. Bd2 {[%emt 0:00:41]} Rce8 {[%emt 0:12:58]} 20. Rad1 {[%emt 0:00:30]} Kh8 {[%emt 0:07:21]} 21. Ng3 {[%emt 0:05:16]} (21. Be1 $5 {[%cal Re1h4]} Nxg2 22. Kxg2 $14) 21... Rd8 {[%emt 0:09:24]} 22. Bc3 {[%emt 0:10:54]} Be3 {[%emt 0:09:10] [#]} 23. e5 $1 {[%emt 0:00:57]} fxe5 {[%emt 0:00:35]} 24. fxe5 {[%emt 0:00:08]} Bf4 $1 {[%emt 0:02:27]} (24... Nxe5 $2 25. Rxd8 Qxd8 26. Rxf8+ Qxf8 27. Bxe5 $18) (24... Nxg2 $2 25. Kxg2 Bg5 26. h4 $18) 25. Nh5 {[%emt 0:07:15]} (25. Ne4 {seems wilder.} Ng6 26. e6 Nb6 27. Rxd8 Qxd8 28. Bb4) 25... Bxe5 {[%emt 0:03:03]} (25... Nxg2 $14 26. Qxg2 (26. e6 Ne3 $14) 26... Bxe5) 26. Rxf8+ $16 {[%emt 0:00:25]} Rxf8 {[%emt 0:00:12] [#]} 27. Rxd7 $1 {[%emt 0:00:16][%mdl 576] Remove Defender, Deflection} Qxd7 {[%emt 0:00:03]} 28. Bxe5 $40 {[%emt 0:00:06][%mdl 128] White goes for the king. This bishop pair is nice.} Rf7 {[%emt 0:00:03]} 29. Be4 {[%emt 0:01:58]} Qe7 {[%emt 0:01:59] [#]} 30. Qd3 {[%emt 0:00:19] Inhibits Rf1+. White is much more active.} c5 {[%emt 0:01:39]} (30... Qe8 $16 31. Bd4 a6) 31. a3 {[%emt 0:05:04]} b5 {[%emt 0:00:04]} (31... b6 $16 {was necessary.} 32. Bc3 Qf8) 32. Qd5 $18 {[%emt 0:02:54] And now Nxg7 would win.} Ng6 {[%emt 0:00:57]} 33. Bxg6 {[%emt 0:01:56] Really sharp!} (33. Bd6 $18 Qe8 34. Bxc5) 33... hxg6 $11 {[%emt 0:00:04]} 34. Nf4 {[%emt 0:00:03]} (34. Ng3 $5 {[%cal Rg3e4]}) 34... Kh7 {[%emt 0:00:07]} (34... Rxf4 $5 35. Bxf4 Qe1+ 36. Kg2 Qe2+ 37. Kg1 Qe1+ 38. Kg2 Qe2+ 39. Kg3 Qe1+ 40. Kg2 $11) 35. Kh2 {[%emt 0:00:59] Strongly threatening Ne6.} Qh4 $2 {[%emt 0:01:16]} 36. Kg2 {[%emt 0:00:05]} Qe7 {[%emt 0:00:22][%cal Of7f4]} 37. Kg3 {[%emt 0:00:16] Ne6 is the strong threat.} b4 $2 {[%emt 0:00:25]} (37... Rf8 {keeps fighting.}) 38. Qe4 $2 {[%emt 0:00:48]} (38. Ne6 $18 bxa3 39. bxa3 (39. h4 axb2 40. Bxb2 Rf1 $18)) 38... Rf6 {[%emt 0:00:15][%mdl 8192] Against Bd6} 39. Nd5 {[%emt 0:00:12] Weighted Error Value: White=0.39/Black=0.43} 1-0

[Event "5th Sharjah Masters 2022"]
[Site "Sharjah"]
[Date "2022.05.26"]
[Round "6.26"]
[White "Badelka, Olga"]
[Black "Ivic, Velimir"]
[Result "1-0"]
[ECO "E94"]
[WhiteElo "2453"]
[BlackElo "2623"]
[Annotator "TA"]
[PlyCount "97"]
[EventDate "2022.05.21"]
[EventType "swiss"]
[EventCountry "UAE"]
[SourceTitle "playchess.com"]
[Source "ChessBase"]
[SourceQuality "1"]
[TimeControl "5400+30"]

{[%evp 22,97,49,24,75,62,63,60,84,70,78,76,70,74,74,71,71,65,68,64,68,55,66,44,89,81,98,89,86,67,91,91,164,167,176,164,156,157,152,157,202,175,245,209,203,173,156,141,122,143,143,135,169,208,161,88,76,93,93,0,0,0,0,0,0,0,0,0,0,0,0,-556,29985,29986,29988,29989,29989,29990]} 1. d4 {[%emt 0:00:04]} Nf6 {[%emt 0:00:12]} 2. c4 {[%emt 0:00:08]} g6 {[%emt 0:00:10]} 3. Nc3 {[%emt 0:00:08]} Bg7 {[%emt 0:00:06]} 4. e4 {[%emt 0:00:08]} d6 {[%emt 0:00:06]} 5. Nf3 {[%emt 0:00:19]} O-O {[%emt 0:00:19]} 6. Be2 {[%emt 0:00:10]} Na6 {[%emt 0:03:34]} 7. O-O {[%emt 0:01:04]} e5 {[%emt 0:00:19]} 8. Be3 {[%emt 0:00:40]} c6 {[%emt 0:03:54]} 9. d5 {[%emt 0:05:43]} Ng4 {[%emt 0:00:41]} 10. Bg5 {[%emt 0:00:40]} f6 {[%emt 0:00:19]} 11. Bd2 {[%emt 0:04:44]} f5 {[%emt 0:00:46]} 12. Bg5 {[%emt 0:08:17]} Qc7 {[%emt 0:09:13] E94: King's Indian: Classical: 6 Be2 e5 7 0-0: Various Black 7th moves.} (12... Nf6 $11) 13. exf5 {[%emt 0:03:21]} gxf5 {[%emt 0:01:11]} 14. Qd2 {[%emt 0:05:37] [#]} h6 $146 {[%emt 0:11:37] White is slightly better.} ({Predecessor:} 14... c5 15. Nb5 Qd7 16. Bh4 Nc7 17. Nxc7 Qxc7 18. Ng5 Qe7 19. f3 Nh6 20. g3 Bf6 21. Kh1 Nf7 22. Nxf7 Rxf7 23. Bxf6 {½-½ (23) Mihajlov,S (2371)-Lee,J (2305) Prague 2018}) 15. Bh4 {[%emt 0:00:11]} c5 {[%emt 0:01:23]} 16. Ne1 {[%emt 0:03:19]} Qf7 {[%emt 0:09:23]} 17. f3 {[%emt 0:07:39][%cal Bf2f3,Bf3f4][%mdl 32]} Nf6 {[%emt 0:00:40]} 18. f4 {[%emt 0:00:17]} e4 {[%emt 0:01:05]} 19. Nc2 {[%emt 0:00:30]} Nc7 {[%emt 0:02:33][%cal Ob7b5]} 20. Ne3 {[%emt 0:00:28]} Bd7 {[%emt 0:00:58]} 21. Kh1 {[%emt 0:01:27][%cal Og2g4]} Qg6 {[%emt 0:01:23]} 22. Qd1 {[%emt 0:16:31]} Nce8 {[%emt 0:06:21]} 23. h3 {[%emt 0:02:21]} h5 {[%emt 0:01:17]} 24. Rb1 {[%emt 0:01:19]} b6 {[%emt 0:03:40]} 25. Rg1 {[%emt 0:16:06]} Kf7 {[%emt 0:01:15]} 26. b4 {[%emt 0:03:46]} Rc8 {[%emt 0:10:56]} (26... Ng4 $16 {keeps fighting.} 27. hxg4 hxg4) 27. bxc5 $18 {[%emt 0:03:28]} Rxc5 {[%emt 0:01:03]} 28. Nb5 {[%emt 0:00:37]} Bxb5 {[%emt 0:05:41]} 29. Rxb5 {[%emt 0:00:05]} Rc7 {[%emt 0:02:16]} 30. Nc2 {[%emt 0:06:12][%cal Be3c2,Bc2d4,Bd4e6][%mdl 32]} Bh6 {[%emt 0:05:05]} 31. Qc1 {[%emt 0:09:15]} Rh8 {[%emt 0:04:33]} (31... Ng7 {was necessary.} 32. Nd4 Kg8) 32. Rb3 {[%emt 0:00:42]} Bf8 {[%emt 0:03:30]} 33. Qd1 {[%emt 0:00:59]} Be7 {[%emt 0:00:30]} 34. Be1 {[%emt 0:00:35]} h4 {[%emt 0:02:29]} 35. Nd4 {[%emt 0:00:10] [#] g4 is the strong threat.} Nh5 {[%emt 0:01:08][%cal Bf6h5,Bh5g7,Bg7e6][%mdl 32]} 36. Ne6 {[%emt 0:00:04]} Rd7 {[%emt 0:01:24]} 37. g4 {[%emt 0:00:37]} hxg3 {[%emt 0:00:09]} 38. Bxg3 {[%emt 0:00:20]} (38. Rbxg3 $18 Nxg3+ 39. Rxg3) 38... Qh6 $16 {[%emt 0:00:48]} 39. Bh2 {[%emt 0:00:21][%cal Oh3h4]} Nhg7 {[%emt 0:02:40]} 40. Rbg3 {[%emt 0:01:16] White is much more active. The black rooks are badly placed.} (40. Ng5+ $16 Kf8 41. Rg2) 40... Nxe6 $11 {[%emt 0:02:16]} 41. Bh5+ $1 {[%emt 0:00:45]} Kf8 {[%emt 0:01:25]} 42. Rg6 $1 {[%emt 0:00:14]} ({Reject} 42. dxe6 Qxe6 43. Be2 Bf6 $17) 42... Qh7 {[%emt 0:02:26]} 43. dxe6 {[%emt 0:00:03]} Rc7 {[%emt 0:00:03] White must now prevent ...Bf6.} 44. R6g3 {[%emt 0:01:05] Hoping for Bg6.} Bh4 $1 {[%emt 0:01:07]} (44... Qxh5 $2 45. Qxh5 Bf6 46. Qxf5 $18) 45. Bxe8 $40 {[%emt 0:00:39][%mdl 128] White mounts an attack. Really sharp! This bishop pair is nice.} ({Much weaker is} 45. Bg6 Qe7 46. Bxf5 Bxg3 47. Rxg3 Qf6 48. Bxe4 Qxe6 $17) 45... Bxg3 {[%emt 0:00:33]} 46. Bf7 $2 {[%emt 0:01:06][%mdl 8192] [#]} (46. Qxd6+ $11 {and White has nothing to worry.} Kxe8 47. Rxg3) 46... Qxh3 $4 {[%emt 0:00:30][%mdl 8192]} (46... Bxf4 $1 $19 {[%mdl 512]} 47. Qf1 Bxh2 48. Kxh2 Rc5) 47. Qxd6+ {[%emt 0:00:00] White mates.} Kg7 {[%emt 0:00:30]} 48. Rxg3+ {[%emt 0:00:00]} Qxg3 {[%emt 0:00:21]} 49. Qe5+ {[%emt 0:00:00] White used his chance.  Weighted Error Value: White=0.30/Black=0.28 (precise)} 1-0

[Event "5th Sharjah Masters 2022"]
[Site "Sharjah"]
[Date "2022.05.26"]
[Round "6.27"]
[White "Nikolov, Momchil"]
[Black "Mastrovasilis, Dimitrios"]
[Result "1/2-1/2"]
[ECO "D46"]
[WhiteElo "2454"]
[BlackElo "2613"]
[Annotator "TA"]
[PlyCount "109"]
[EventDate "2022.05.21"]
[EventType "swiss"]
[EventCountry "UAE"]
[SourceTitle "playchess.com"]
[Source "ChessBase"]
[SourceQuality "1"]
[TimeControl "5400+30"]

{[%evp 22,109,33,2,6,11,8,0,18,12,15,0,22,12,13,0,0,0,0,0,0,-15,-14,-35,-26,-42,-38,-39,-39,-28,-34,-47,-47,-48,-47,-56,-55,-52,-30,-87,-58,-58,0,0,0,0,20,0,0,0,0,-15,-8,-12,-8,-27,-12,0,0,0,0,-37,0,0,0,0,0,0,0,0,0,0,0,0,0,0,0,0,0,0,0,0,0,0,0,0,0,0,0,0]} 1. d4 {[%emt 0:00:05]} d5 {[%emt 0:00:08]} 2. c4 {[%emt 0:00:09]} c6 {[%emt 0:00:08]} 3. Nc3 {[%emt 0:01:05]} Nf6 {[%emt 0:00:24]} 4. e3 {[%emt 0:01:27]} e6 {[%emt 0:00:46]} 5. Nf3 {[%emt 0:00:15]} Nbd7 {[%emt 0:00:19]} 6. Qc2 {[%emt 0:00:19]} Bd6 {[%emt 0:01:45]} 7. Bd3 {[%emt 0:00:20]} O-O {[%emt 0:00:22]} 8. O-O {[%emt 0:00:16]} dxc4 {[%emt 0:00:38]} 9. Bxc4 {[%emt 0:00:08]} b5 {[%emt 0:00:16]} 10. Be2 {[%emt 0:00:54]} Bb7 {[%emt 0:01:34]} 11. Rd1 {[%emt 0:01:22] 11.e4 is more fashionable.} Qc7 {[%emt 0:07:37]} 12. Bd2 {[%emt 0:01:17]} (12. e4 $5 {[%cal Re4e5]} e5 13. g3 $11) 12... a6 {[%emt 0:02:58] D46: Semi-Slav: 5 e3 Nbd7 6 Bd3, Black avoids the Meran.} 13. b4 {[%emt 0:03:47] Prevents c5.} e5 {[%emt 0:02:43]} 14. a3 {[%emt 0:06:12]} Rae8 {[%emt 0:24:34]} 15. Bd3 {[%emt 0:04:37] [#]} h6 $146 {[%emt 0:01:48]} ({Predecessor:} 15... g6 16. h3 Re7 17. Ng5 exd4 18. exd4 Rfe8 19. Rac1 Bh2+ 20. Kh1 Bf4 21. Nf3 Qd6 {1-0 (40) Maiorov,N (2512)-Filipenko,A (2245) Kazan 2018}) 16. Re1 {[%emt 0:07:11]} exd4 {[%emt 0:06:28]} 17. exd4 {[%emt 0:00:13]} Nb6 {[%emt 0:00:34]} 18. h3 {[%emt 0:09:17]} Bc8 {[%emt 0:04:09][%cal Bb7c8,Bc8e6,Be6d5][%mdl 32]} 19. Ne4 {[%emt 0:06:42]} Nxe4 {[%emt 0:00:52]} 20. Bxe4 {[%emt 0:00:14]} Nc4 {[%emt 0:01:47]} 21. Bc3 {[%emt 0:01:59]} Be6 {[%emt 0:05:28]} 22. Ne5 {[%emt 0:01:28]} Bd5 $1 {[%emt 0:00:41]} 23. Nxc4 {[%emt 0:00:38]} bxc4 {[%emt 0:07:05]} 24. Re2 {[%emt 0:04:54]} Re7 {[%emt 0:04:22]} 25. Rae1 {[%emt 0:09:58]} Rfe8 {[%emt 0:00:34]} 26. Bf5 {[%emt 0:07:00]} g6 {[%emt 0:06:38]} 27. Bg4 {[%emt 0:01:32]} h5 {[%emt 0:01:21]} 28. Rxe7 {[%emt 0:01:12]} Rxe7 {[%emt 0:00:08]} 29. Be2 {[%emt 0:00:22]} Qd8 {[%emt 0:05:53]} 30. Bf1 {[%emt 0:01:34]} (30. Qa2 $11 {keeps the balance.}) 30... Rxe1 {[%emt 0:01:02]} 31. Bxe1 {[%emt 0:00:07]} Qg5 {[%emt 0:00:25]} (31... Qe7 $15 32. Bd2 Qe6) 32. Bd2 $11 {[%emt 0:02:44]} Qf6 {[%emt 0:05:47]} 33. Bxc4 {[%emt 0:01:47] And now Be3 would win.} Qxd4 {[%emt 0:00:23]} 34. Bxd5 {[%emt 0:06:03]} Qxd5 {[%emt 0:00:18][%mdl 4096] Endgame KQB-KQB} 35. h4 {[%emt 0:05:31]} Qd4 {[%emt 0:01:18]} 36. g3 {[%emt 0:08:58]} Bxg3 {[%emt 0:02:02]} 37. Be3 {[%emt 0:00:15]} Qg4 {[%emt 0:01:37]} 38. Qxc6 {[%emt 0:00:51]} Bxh4+ {[%emt 0:00:54]} 39. Kf1 {[%emt 0:00:38]} Qd1+ {[%emt 0:01:17]} 40. Kg2 {[%emt 0:00:03]} Qg4+ {[%emt 0:00:06]} 41. Kf1 {[%emt 0:00:17]} Qd1+ {[%emt 0:02:55]} 42. Kg2 {[%emt 0:00:03] The position is equal.} Kg7 {[%emt 0:00:48]} 43. Qxa6 {[%emt 0:02:02]} Qg4+ {[%emt 0:00:14]} 44. Kf1 {[%emt 0:00:43]} Qd1+ {[%emt 0:00:43]} 45. Kg2 {[%emt 0:00:02]} Qg4+ {[%emt 0:00:24]} 46. Kf1 {[%emt 0:00:33]} Bf6 {[%emt 0:00:16]} 47. Bh6+ {[%emt 0:01:37]} Kxh6 {[%emt 0:00:10]} 48. Qxf6 {[%emt 0:00:06] KQ-KQ} Qh3+ {[%emt 0:00:10]} 49. Kg1 {[%emt 0:00:18] [#] Qh8+ is the strong threat.} Qxa3 {[%emt 0:00:17]} 50. b5 {[%emt 0:02:56][%cal Bb4b5,Bb5b6][%mdl 32] Strongly threatening Qh8+.} Qc1+ {[%emt 0:00:26]} 51. Kg2 {[%emt 0:00:22] aiming for Qh8+.} Qc7 {[%emt 0:00:36]} 52. b6 {[%emt 0:01:17]} Qb7+ {[%emt 0:00:02]} 53. f3 {[%emt 0:00:31]} Kh7 {[%emt 0:00:49] Prevents Qh8+.} 54. Qd8 {[%emt 0:00:45] [#] Threatens to win with Qc7.} Qa6 {[%emt 0:00:37]} 55. Qc7 {[%emt 0:00:57] Weighted Error Value: White=0.05 (flawless) /Black=0.06 (flawless)} 1/2-1/2

[Event "5th Sharjah Masters 2022"]
[Site "Sharjah"]
[Date "2022.05.26"]
[Round "6.28"]
[White "Adly, Ahmed"]
[Black "Buksa, Nataliya"]
[Result "1-0"]
[ECO "A04"]
[WhiteElo "2596"]
[BlackElo "2406"]
[Annotator "TA"]
[PlyCount "127"]
[EventDate "2022.05.21"]
[EventType "swiss"]
[EventCountry "UAE"]
[SourceTitle "playchess.com"]
[Source "ChessBase"]
[SourceQuality "1"]
[TimeControl "5400+30"]

{[%evp 12,127,-6,-26,12,3,9,2,8,3,0,12,0,-5,0,-29,-11,-27,-8,-19,0,0,14,16,46,45,70,43,74,0,0,8,88,82,191,192,192,182,233,218,221,167,180,161,219,204,214,213,211,227,229,225,216,225,231,220,203,170,292,285,252,42,233,266,441,445,527,516,499,436,427,435,458,451,448,429,547,553,720,720,697,583,566,558,708,704,691,666,720,709,762,761,760,708,1176,1137,1155,1155,5293,4906,29937,29938,12849,12849,29943,29943,29940,12825,12793,11373,6786,5223,8166,7221,29987,5210,29990,29991]} 1. Nf3 {[%emt 0:00:03]} c5 {[%emt 0:03:19]} 2. g3 {[%emt 0:00:14]} Nc6 {[%emt 0:00:04]} 3. Bg2 {[%emt 0:00:38]} e5 {[%emt 0:00:09]} 4. O-O {[%emt 0:00:14]} g6 {[%emt 0:00:20]} 5. e4 {[%emt 0:00:40]} Bg7 {[%emt 0:00:20]} 6. c3 {[%emt 0:00:16]} Nge7 {[%emt 0:01:13]} 7. a3 {[%emt 0:00:07]} a5 {[%emt 0:01:58] A04: Unusual lines after 1 Nf3 and King's Indian Attack.} 8. a4 {[%emt 0:00:07]} O-O {[%emt 0:02:58]} 9. d3 {[%emt 0:00:24]} d5 {[%emt 0:08:28] The position is equal.} 10. exd5 {[%emt 0:00:14]} Nxd5 {[%emt 0:00:03]} 11. Qb3 {[%emt 0:00:05]} Nde7 {[%emt 0:03:25]} 12. Be3 {[%emt 0:00:09]} b6 {[%emt 0:03:33]} 13. Na3 {[%emt 0:00:04]} Be6 {[%emt 0:01:41]} (13... Qxd3 14. Qxb6 Rd8 15. Qxc5 $16) 14. Qc2 {[%emt 0:01:28]} h6 {[%emt 0:10:29]} 15. Rad1 {[%emt 0:00:48][%cal Od3d4] [#]} Rc8 $146 {[%emt 0:00:29]} ({Predecessor:} 15... Ra7 16. Rfe1 Rd7 17. h3 Qb8 18. Bc1 Rfd8 19. Nc4 Bf5 20. Bf1 g5 21. Ne3 Be6 {0-1 (38) Movsesian,S (2659)-Salem,A (2586) Doha 2014}) 16. Bc1 {[%emt 0:00:18]} Qc7 {[%emt 0:03:39]} 17. Nd2 {[%emt 0:00:50]} Rfd8 {[%emt 0:07:19]} 18. Ndc4 {[%emt 0:00:31]} Nd5 {[%emt 0:05:36]} 19. Nb5 {[%emt 0:02:57]} (19. Rde1 $5 {[%cal Rf2f4]}) 19... Qb8 {[%emt 0:00:04]} 20. Qe2 {[%emt 0:00:16]} (20. Rde1 $16) 20... Rd7 $1 $11 {[%emt 0:01:02]} 21. f4 {[%emt 0:01:16]} Re8 {[%emt 0:07:42]} (21... exf4 $11 22. Rxf4 (22. gxf4 Re8 $11) 22... g5) 22. Rde1 $16 {[%emt 0:07:25][%cal Rf4e5]} h5 {[%emt 0:07:07]} (22... f6 $16) 23. fxe5 $18 {[%emt 0:11:27]} Bg4 {[%emt 0:00:46]} 24. Qf2 {[%emt 0:00:02]} Nxe5 {[%emt 0:01:55]} (24... Be6 $142 25. d4 (25. Nbd6 Rf8 $16) 25... cxd4) 25. Bxd5 {[%emt 0:10:01]} Rxd5 {[%emt 0:00:03]} 26. Nxe5 {[%emt 0:00:09]} Rdxe5 {[%emt 0:01:45]} 27. Bf4 $1 $40 {[%emt 0:00:07][%mdl 128] Black is in trouble.} (27. Qxf7+ $6 Kh7 28. Bf4 Rxe1 $14) 27... Rxe1 {[%emt 0:05:52]} (27... Rf8 $142) 28. Bxb8 {[%emt 0:00:38]} Rxf1+ {[%emt 0:00:02]} 29. Qxf1 {[%emt 0:03:54]} Rxb8 {[%emt 0:00:03] [#]} 30. Nd6 $1 {[%emt 0:00:02]} Be6 {[%emt 0:01:04]} 31. Qf3 {[%emt 0:00:02] Threatens to win with Qc6.} Rd8 {[%emt 0:03:39]} 32. Qc6 {[%emt 0:01:30]} Bf8 {[%emt 0:00:04]} 33. Ne4 {[%emt 0:00:23]} Rxd3 {[%emt 0:00:32]} 34. Qxb6 {[%emt 0:00:04]} Bh6 {[%emt 0:01:13]} (34... Bf5 {was worth a try.}) 35. Qb8+ {[%emt 0:01:18]} ({Inferior is} 35. Nxc5 Rd1+ 36. Kf2 Rd2+ 37. Ke1 Bc4 $11) 35... Kh7 {[%emt 0:04:10]} 36. Nf6+ {[%emt 0:02:47]} Kg7 {[%emt 0:00:03] [#] ...Be3+ is the strong threat. Loses the game.} 37. Qe5 {[%emt 0:00:11][%csl LRc5,LRh5]} ({But not} 37. Ne4 $6 Be3+ 38. Kg2 Rd5 $16) 37... Rf3 $2 {[%emt 0:16:11]} (37... Rd1+ {keeps fighting.} 38. Kf2 Rd2+ 39. Ke1 Rxb2 40. Ng4+ Kh7 41. Nxh6 Kxh6) 38. Nxh5+ {[%emt 0:02:06]} Kh7 {[%emt 0:00:03]} 39. Nf6+ {[%emt 0:00:07]} Kh8 {[%emt 0:00:03]} 40. Ng4+ {[%emt 0:03:52]} Bg7 {[%emt 0:00:48]} 41. Qe4 {[%emt 0:00:04]} Rf5 {[%emt 0:00:11]} 42. Qa8+ {[%emt 0:03:35]} Kh7 {[%emt 0:00:03]} 43. Qxa5 {[%emt 0:00:06]} c4 {[%emt 0:00:53]} 44. Qd8 {[%emt 0:00:56]} Rf3 {[%emt 0:00:41]} 45. Qh4+ {[%emt 0:00:59]} Kg8 {[%emt 0:00:03]} 46. Nh6+ {[%emt 0:00:15]} Bxh6 {[%emt 0:01:28]} 47. Qxh6 {[%emt 0:00:03][%mdl 4096] Endgame KQ-KRB} Rd3 {[%emt 0:00:04]} 48. Qf4 {[%emt 0:02:18]} Rd5 {[%emt 0:01:10]} 49. Qb8+ {[%emt 0:02:17]} Kh7 {[%emt 0:00:25]} 50. Qb6 {[%emt 0:00:27]} g5 {[%emt 0:00:42]} 51. h4 {[%emt 0:00:55]} Rd1+ {[%emt 0:00:31]} 52. Kf2 {[%emt 0:00:03]} g4 {[%emt 0:00:29]} 53. a5 {[%emt 0:00:15]} Rd2+ {[%emt 0:00:03]} 54. Ke1 {[%emt 0:00:36]} Rg2 {[%emt 0:00:19]} 55. a6 {[%emt 0:01:10] aiming for Qd4.} Rxg3 {[%emt 0:00:09]} 56. a7 {[%emt 0:00:56]} Bd5 {[%emt 0:00:03]} 57. Qc5 {[%emt 0:00:11]} Bh1 {[%emt 0:00:31]} 58. Qf5+ {[%emt 0:02:51]} Kg8 {[%emt 0:00:12]} 59. Qc8+ {[%emt 0:00:02]} (59. a8=Q+ $142 Bxa8 60. Qc8+ Kg7 61. Qxa8 Re3+ 62. Kf2 Rh3 63. Qd5 Rf3+ 64. Kg2) 59... Kg7 {[%emt 0:00:11]} 60. a8=Q {[%emt 0:00:11]} Bxa8 {[%emt 0:00:03]} 61. Qxa8 {[%emt 0:01:21] Hoping for Qe4.} Rh3 {[%emt 0:00:01]} 62. Qd5 {[%emt 0:00:12]} g3 {[%emt 0:00:38]} 63. Kf1 {[%emt 0:00:15]} (63. Qg2 $142 Rxh4 64. Qxg3+ Kf6 65. Qxh4+ Ke5 66. Qxc4 f6 67. b4 f5 68. b5) 63... f6 {[%emt 0:01:05]} 64. Qd7+ {[%emt 0:00:05] Weighted Error Value: White=0.18 (very precise) /Black=0.28 (precise)} 1-0